[Event "*** Titled Tuesday Blitz"]
[Site "Chess.com"]
[Date "2019.04.02"]
[Round "7"]
[White "Andrjywa"]
[Black "Margency"]
[Result "1/2-1/2"]
[WhiteElo "2528"]
[BlackElo "2698"]
[TimeControl "180+2"]
[EndTime "15:34:54 PDT"]
[Termination "Game drawn - insufficient material"]

1. Nf3 {[%clk 0:03:01.9]} 1... Nf6 {[%clk 0:03:00.4]} 2. g3 {[%clk 0:03:03]}
2... g6 {[%clk 0:03:01.1]} 3. Bg2 {[%clk 0:03:04.9]} 3... d5 {[%clk 0:03:02]} 4.
O-O {[%clk 0:03:06]} 4... Bg7 {[%clk 0:03:03.3]} 5. c4 {[%clk 0:02:58.8]} 5...
dxc4 {[%clk 0:03:03.5]} 6. Qc2 {[%clk 0:02:49.1]} 6... O-O {[%clk 0:03:01.5]} 7.
Qxc4 {[%clk 0:02:49.7]} 7... Nc6 {[%clk 0:02:59.2]} 8. d3 {[%clk 0:02:40.6]}
8... Nd5 {[%clk 0:02:42.5]} 9. a3 {[%clk 0:02:34.8]} 9... Nb6 {[%clk 0:02:42.3]}
10. Qc2 {[%clk 0:02:35]} 10... Bg4 {[%clk 0:02:41.7]} 11. Be3 {[%clk 0:02:23.8]}
11... Qd7 {[%clk 0:02:39.9]} 12. Nc3 {[%clk 0:02:24]} 12... Bh3 {[%clk
0:02:29.7]} 13. Rac1 {[%clk 0:02:17]} 13... Bxg2 {[%clk 0:02:29.6]} 14. Kxg2
{[%clk 0:02:17.9]} 14... Rad8 {[%clk 0:02:30.7]} 15. Nb5 {[%clk 0:02:16.2]}
15... Nd5 {[%clk 0:02:28.8]} 16. Bd2 {[%clk 0:02:04.4]} 16... Ne5 {[%clk
0:02:17.4]} 17. Nxe5 {[%clk 0:01:45]} 17... Bxe5 {[%clk 0:02:10.1]} 18. Nc3
{[%clk 0:01:45.2]} 18... c6 {[%clk 0:02:08.6]} 19. Nxd5 {[%clk 0:01:45.6]} 19...
Qxd5+ {[%clk 0:02:09]} 20. f3 {[%clk 0:01:41.1]} 20... h5 {[%clk 0:02:05.8]} 21.
Qc4 {[%clk 0:01:26.6]} 21... Rd7 {[%clk 0:01:42.9]} 22. Qxd5 {[%clk 0:01:26.5]}
22... Rxd5 {[%clk 0:01:44.8]} 23. Bc3 {[%clk 0:01:27.5]} 23... Rfd8 {[%clk
0:01:42.2]} 24. Bxe5 {[%clk 0:01:27.3]} 24... Rxe5 {[%clk 0:01:43.4]} 25. Kf2
{[%clk 0:01:28.9]} 25... Rb5 {[%clk 0:01:42.5]} 26. Rc2 {[%clk 0:01:29.8]} 26...
a5 {[%clk 0:01:43]} 27. Rfc1 {[%clk 0:01:28.9]} 27... Rb3 {[%clk 0:01:41]} 28.
Rb1 {[%clk 0:01:18.1]} 28... Rd5 {[%clk 0:01:38.6]} 29. Rc3 {[%clk 0:01:18.4]}
29... Rb6 {[%clk 0:01:39.5]} 30. b3 {[%clk 0:01:14.7]} 30... e6 {[%clk
0:01:37.1]} 31. Ke3 {[%clk 0:01:15.1]} 31... Kf8 {[%clk 0:01:37.7]} 32. Kd2
{[%clk 0:01:16.2]} 32... g5 {[%clk 0:01:38.8]} 33. Kc2 {[%clk 0:01:16.7]} 33...
g4 {[%clk 0:01:37.7]} 34. f4 {[%clk 0:01:15.8]} 34... Ra6 {[%clk 0:01:38.1]} 35.
e4 {[%clk 0:01:16.4]} 35... Rd8 {[%clk 0:01:36.6]} 36. Rc5 {[%clk 0:01:16.7]}
36... Ke7 {[%clk 0:01:16.3]} 37. Rxh5 {[%clk 0:01:17.4]} 37... Raa8 {[%clk
0:01:17.4]} 38. Rg5 {[%clk 0:01:10.5]} 38... Rh8 {[%clk 0:01:16]} 39. Rh1 {[%clk
0:01:08.3]} 39... Rag8 {[%clk 0:01:15.4]} 40. Rxg8 {[%clk 0:01:09.1]} 40... Rxg8
{[%clk 0:01:16.7]} 41. h4 {[%clk 0:01:10]} 41... gxh3 {[%clk 0:01:17.9]} 42.
Rxh3 {[%clk 0:01:11.1]} 42... Kd6 {[%clk 0:01:16.7]} 43. Kc3 {[%clk 0:01:10.3]}
43... f5 {[%clk 0:01:16.3]} 44. e5+ {[%clk 0:01:05.8]} 44... Kd5 {[%clk
0:01:11.6]} 45. Rh7 {[%clk 0:00:58.5]} 45... Rxg3 {[%clk 0:01:03.2]} 46. Rxb7
{[%clk 0:00:51.8]} 46... Rf3 {[%clk 0:01:02.1]} 47. b4 {[%clk 0:00:43.3]} 47...
Rxf4 {[%clk 0:00:57.7]} 48. Rd7+ {[%clk 0:00:38.5]} 48... Kxe5 {[%clk
0:00:58.9]} 49. d4+ {[%clk 0:00:40.1]} 49... Kf6 {[%clk 0:00:59.6]} 50. bxa5
{[%clk 0:00:41.6]} 50... Rh4 {[%clk 0:00:52.2]} 51. a6 {[%clk 0:00:41.6]} 51...
Rh8 {[%clk 0:00:52.6]} 52. a7 {[%clk 0:00:37.4]} 52... f4 {[%clk 0:00:53.4]} 53.
Kd2 {[%clk 0:00:37]} 53... Kf5 {[%clk 0:00:54.4]} 54. Rb7 {[%clk 0:00:35.6]}
54... Ra8 {[%clk 0:00:54.6]} 55. Kd3 {[%clk 0:00:36.8]} 55... e5 {[%clk
0:00:51.7]} 56. dxe5 {[%clk 0:00:26.1]} 56... Kxe5 {[%clk 0:00:52.9]} 57. Rd7
{[%clk 0:00:22.4]} 57... c5 {[%clk 0:00:53.6]} 58. Kc4 {[%clk 0:00:21]} 58... f3
{[%clk 0:00:54]} 59. Rf7 {[%clk 0:00:21.5]} 59... f2 {[%clk 0:00:53.7]} 60. Rxf2
{[%clk 0:00:21.3]} 60... Rxa7 {[%clk 0:00:55.2]} 61. Kxc5 {[%clk 0:00:22.9]}
61... Rxa3 {[%clk 0:00:54.9]} 62. Re2+ {[%clk 0:00:23]} 62... Kf4 {[%clk
0:00:56.2]} 63. Re8 {[%clk 0:00:23.4]} 63... Re3 {[%clk 0:00:56.7]} 64. Rxe3
{[%clk 0:00:23.4]} 64... Kxe3 {[%clk 0:00:58.1]} 1/2-1/2

[Event "*** Titled Tuesday Blitz"]
[Site "Chess.com"]
[Date "2019.04.02"]
[Round "7"]
[White "GMKrikor"]
[Black "Oleg_Papayan"]
[Result "1/2-1/2"]
[WhiteElo "2721"]
[BlackElo "2519"]
[TimeControl "180+2"]
[EndTime "15:34:55 PDT"]
[Termination "Game drawn by repetition"]

1. Nf3 {[%clk 0:03:01.9]} 1... Nf6 {[%clk 0:02:59.4]} 2. c4 {[%clk 0:03:02.4]}
2... b6 {[%clk 0:03:00]} 3. g3 {[%clk 0:03:03.3]} 3... Bb7 {[%clk 0:03:01.4]} 4.
Bg2 {[%clk 0:03:04.6]} 4... e6 {[%clk 0:03:03]} 5. O-O {[%clk 0:03:05.4]} 5...
Be7 {[%clk 0:03:03.9]} 6. d4 {[%clk 0:03:02.6]} 6... O-O {[%clk 0:03:04]} 7. Re1
{[%clk 0:03:03.9]} 7... d5 {[%clk 0:03:04.2]} 8. cxd5 {[%clk 0:03:04]} 8... exd5
{[%clk 0:03:05.2]} 9. Nc3 {[%clk 0:03:05.6]} 9... Nbd7 {[%clk 0:03:06]} 10. Bf4
{[%clk 0:03:06.9]} 10... c5 {[%clk 0:03:04.7]} 11. Rc1 {[%clk 0:03:08]} 11... a6
{[%clk 0:03:02]} 12. dxc5 {[%clk 0:03:01.5]} 12... bxc5 {[%clk 0:03:03.9]} 13.
Ne5 {[%clk 0:02:50.3]} 13... Nb6 {[%clk 0:02:47.6]} 14. Na4 {[%clk 0:02:50.3]}
14... Nxa4 {[%clk 0:02:40.8]} 15. Qxa4 {[%clk 0:02:52.2]} 15... Qb6 {[%clk
0:02:41.2]} 16. Nd7 {[%clk 0:02:12.9]} 16... Nxd7 {[%clk 0:02:27.7]} 17. Qxd7
{[%clk 0:02:14.8]} 17... Rfe8 {[%clk 0:02:18]} 18. Bxd5 {[%clk 0:01:42]} 18...
Bxd5 {[%clk 0:02:17.3]} 19. Qxd5 {[%clk 0:01:43.9]} 19... Qxb2 {[%clk 0:02:16]}
20. Rb1 {[%clk 0:01:32.8]} 20... Qd4 {[%clk 0:02:14.4]} 21. Qxd4 {[%clk
0:01:13.4]} 21... cxd4 {[%clk 0:02:16.3]} 22. Red1 {[%clk 0:01:14.3]} 22... Bf6
{[%clk 0:02:15.8]} 23. Kf1 {[%clk 0:01:15.6]} 23... Rac8 {[%clk 0:02:11.5]} 24.
Rd2 {[%clk 0:01:08.7]} 24... Rc6 {[%clk 0:02:06.6]} 25. Rb8 {[%clk 0:01:00.4]}
25... Rxb8 {[%clk 0:02:02.5]} 26. Bxb8 {[%clk 0:01:02.3]} 26... h5 {[%clk
0:01:29.4]} 27. f4 {[%clk 0:00:58.2]} 27... Rc4 {[%clk 0:01:17.4]} 28. Ba7
{[%clk 0:00:54.8]} 28... Kh7 {[%clk 0:01:15]} 29. Kf2 {[%clk 0:00:56.1]} 29...
Kg6 {[%clk 0:01:14.8]} 30. Kf3 {[%clk 0:00:53.1]} 30... Rc3+ {[%clk 0:01:02.7]}
31. Rd3 {[%clk 0:00:54.2]} 31... Rc2 {[%clk 0:00:46]} 32. a3 {[%clk 0:00:50.6]}
32... Kf5 {[%clk 0:00:44.1]} 33. h3 {[%clk 0:00:51.5]} 33... Ra2 {[%clk
0:00:36.6]} 34. g4+ {[%clk 0:00:49.9]} 34... hxg4+ {[%clk 0:00:37.7]} 35. hxg4+
{[%clk 0:00:51.8]} 35... Ke6 {[%clk 0:00:39.3]} 36. Bc5 {[%clk 0:00:30]} 36...
g6 {[%clk 0:00:36.6]} 37. Bb4 {[%clk 0:00:13]} 37... Kd5 {[%clk 0:00:29.4]} 38.
Rd1 {[%clk 0:00:10.6]} 38... Rc2 {[%clk 0:00:21.2]} 39. e3 {[%clk 0:00:07.2]}
39... Kc4 {[%clk 0:00:21.5]} 40. exd4 {[%clk 0:00:04.7]} 40... Bxd4 {[%clk
0:00:23.4]} 41. Ke4 {[%clk 0:00:03.9]} 41... Re2+ {[%clk 0:00:23.4]} 42. Kf3
{[%clk 0:00:05.5]} 42... Re3+ {[%clk 0:00:24.4]} 43. Kg2 {[%clk 0:00:06.3]}
43... f5 {[%clk 0:00:25.1]} 44. gxf5 {[%clk 0:00:06.6]} 44... gxf5 {[%clk
0:00:27]} 45. Rc1+ {[%clk 0:00:05.2]} 45... Kd5 {[%clk 0:00:26.8]} 46. Rc8
{[%clk 0:00:03.6]} 46... Ke4 {[%clk 0:00:23]} 47. Re8+ {[%clk 0:00:02.9]} 47...
Kd3 {[%clk 0:00:24]} 48. Rf8 {[%clk 0:00:03.5]} 48... Ke4 {[%clk 0:00:22.5]} 49.
Re8+ {[%clk 0:00:04.8]} 49... Kd3 {[%clk 0:00:20.5]} 50. Rf8 {[%clk 0:00:06.3]}
50... Ke4 {[%clk 0:00:15.9]} 51. Re8+ {[%clk 0:00:06.3]} 1/2-1/2

[Event "*** Titled Tuesday Blitz"]
[Site "Chess.com"]
[Date "2019.04.02"]
[Round "7"]
[White "Martins-BR"]
[Black "Maili15"]
[Result "1/2-1/2"]
[WhiteElo "2240"]
[BlackElo "2268"]
[TimeControl "180+2"]
[EndTime "15:34:57 PDT"]
[Termination "Game drawn by agreement"]

1. e4 {[%clk 0:03:01.9]} 1... c5 {[%clk 0:03:00.1]} 2. Nf3 {[%clk 0:03:02]} 2...
d6 {[%clk 0:03:01.3]} 3. d4 {[%clk 0:02:57]} 3... cxd4 {[%clk 0:03:03.2]} 4.
Nxd4 {[%clk 0:02:57.9]} 4... Nf6 {[%clk 0:03:04.4]} 5. Nc3 {[%clk 0:02:58.7]}
5... a6 {[%clk 0:03:05.3]} 6. Bg5 {[%clk 0:02:53.9]} 6... Nbd7 {[%clk
0:03:03.5]} 7. f4 {[%clk 0:02:43.6]} 7... h6 {[%clk 0:03:03.9]} 8. Bh4 {[%clk
0:02:16.8]} 8... Qc7 {[%clk 0:02:58.7]} 9. Qe2 {[%clk 0:02:06.2]} 9... g5 {[%clk
0:02:54.4]} 10. fxg5 {[%clk 0:02:04]} 10... hxg5 {[%clk 0:02:56.3]} 11. Bxg5
{[%clk 0:02:04.4]} 11... Rg8 {[%clk 0:02:45.8]} 12. Bd2 {[%clk 0:01:44.9]} 12...
Ne5 {[%clk 0:02:43.9]} 13. h3 {[%clk 0:01:42.8]} 13... b5 {[%clk 0:02:42.3]} 14.
a3 {[%clk 0:01:34.7]} 14... Bb7 {[%clk 0:02:38.1]} 15. O-O-O {[%clk 0:01:34.3]}
15... Nc4 {[%clk 0:02:34.3]} 16. g4 {[%clk 0:00:56.6]} 16... Nxd2 {[%clk
0:02:23.3]} 17. Qxd2 {[%clk 0:00:53.5]} 17... Nxe4 {[%clk 0:02:19.2]} 18. Nxe4
{[%clk 0:00:54.2]} 18... Bxe4 {[%clk 0:02:21.1]} 19. Bg2 {[%clk 0:00:50.7]}
19... Bxg2 {[%clk 0:02:16.4]} 20. Qxg2 {[%clk 0:00:51]} 20... Rc8 {[%clk
0:02:16.9]} 21. Kb1 {[%clk 0:00:51]} 21... Bg7 {[%clk 0:02:13.8]} 22. Nf5 {[%clk
0:00:47.1]} 22... Bf6 {[%clk 0:02:11]} 23. Rhe1 {[%clk 0:00:38.9]} 23... Be5
{[%clk 0:01:56.8]} 24. Re2 {[%clk 0:00:28.7]} 24... Rb8 {[%clk 0:01:38.7]} 25.
Qf3 {[%clk 0:00:23.8]} 25... a5 {[%clk 0:01:20.1]} 26. Rf1 {[%clk 0:00:19.7]}
26... e6 {[%clk 0:00:54.1]} 27. Ne3 {[%clk 0:00:16]} 27... b4 {[%clk 0:00:47.3]}
28. a4 {[%clk 0:00:15]} 28... Rg6 {[%clk 0:00:40.9]} 29. h4 {[%clk 0:00:14.6]}
29... Rf6 {[%clk 0:00:40.8]} 30. Qg2 {[%clk 0:00:15.5]} 30... Rxf1+ {[%clk
0:00:40.9]} 31. Qxf1 {[%clk 0:00:17.4]} 31... Qc6 {[%clk 0:00:34.2]} 32. g5
{[%clk 0:00:14]} 32... Qxa4 {[%clk 0:00:32.6]} 33. Nc4 {[%clk 0:00:14.9]} 33...
b3 {[%clk 0:00:31.2]} 34. Nxe5 {[%clk 0:00:13.2]} 34... dxe5 {[%clk 0:00:19.9]}
35. cxb3 {[%clk 0:00:07.7]} 35... Qxb3 {[%clk 0:00:20.1]} 36. Qc1 {[%clk
0:00:07.3]} 36... Qb5 {[%clk 0:00:19]} 37. Rc2 {[%clk 0:00:07.7]} 37... Kf8
{[%clk 0:00:17.6]} 38. Rc8+ {[%clk 0:00:07.6]} 38... Kg7 {[%clk 0:00:17.8]} 39.
Rxb8 {[%clk 0:00:07.7]} 39... Qxb8 {[%clk 0:00:19.7]} 40. Qc3 {[%clk 0:00:08.7]}
40... Qb5 {[%clk 0:00:20.2]} 41. Ka2 {[%clk 0:00:08.9]} 41... Qa4+ {[%clk
0:00:20.7]} 42. Kb1 {[%clk 0:00:09.5]} 42... Qd1+ {[%clk 0:00:21.5]} 43. Ka2
{[%clk 0:00:10.3]} 43... Qa4+ {[%clk 0:00:22]} 44. Kb1 {[%clk 0:00:11.2]} 44...
Qd1+ {[%clk 0:00:18.8]} 45. Ka2 {[%clk 0:00:12.2]} 1/2-1/2

[Event "*** Titled Tuesday Blitz"]
[Site "Chess.com"]
[Date "2019.04.02"]
[Round "7"]
[White "Miguelito"]
[Black "Durarbayli"]
[Result "1-0"]
[WhiteElo "2670"]
[BlackElo "2751"]
[TimeControl "180+2"]
[EndTime "15:35:01 PDT"]
[Termination "Miguelito won by resignation"]

1. e4 {[%clk 0:03:01.9]} 1... e5 {[%clk 0:02:55.9]} 2. Nc3 {[%clk 0:03:01.4]}
2... Nc6 {[%clk 0:02:56.2]} 3. g3 {[%clk 0:03:02.5]} 3... h5 {[%clk 0:02:55.9]}
4. Nf3 {[%clk 0:03:01.8]} 4... d6 {[%clk 0:02:56.2]} 5. Bg2 {[%clk 0:03:01.2]}
5... Be7 {[%clk 0:02:57.1]} 6. d4 {[%clk 0:03:01.8]} 6... Bg4 {[%clk 0:02:54.3]}
7. d5 {[%clk 0:02:59.2]} 7... Nd4 {[%clk 0:02:54]} 8. Qd3 {[%clk 0:02:48.7]}
8... Bxf3 {[%clk 0:02:49]} 9. Bxf3 {[%clk 0:02:49.5]} 9... h4 {[%clk 0:02:50.9]}
10. Bg2 {[%clk 0:02:48.3]} 10... hxg3 {[%clk 0:02:38.3]} 11. hxg3 {[%clk
0:02:48.5]} 11... Rxh1+ {[%clk 0:02:39.6]} 12. Bxh1 {[%clk 0:02:50.4]} 12... Qd7
{[%clk 0:02:40.7]} 13. Be3 {[%clk 0:02:45.5]} 13... Bf6 {[%clk 0:02:37.7]} 14.
O-O-O {[%clk 0:02:38.5]} 14... c5 {[%clk 0:02:36]} 15. dxc6 {[%clk 0:02:35.2]}
15... bxc6 {[%clk 0:02:37.9]} 16. Ne2 {[%clk 0:02:34.5]} 16... Nxe2+ {[%clk
0:02:35.1]} 17. Qxe2 {[%clk 0:02:35.6]} 17... Be7 {[%clk 0:02:33.4]} 18. Bg2
{[%clk 0:02:25.2]} 18... Nf6 {[%clk 0:02:32.7]} 19. Rh1 {[%clk 0:02:15.1]} 19...
Qb7 {[%clk 0:02:33.3]} 20. Qc4 {[%clk 0:02:11.7]} 20... Bf8 {[%clk 0:02:31.5]}
21. Bh3 {[%clk 0:02:03.6]} 21... Rb8 {[%clk 0:02:28.7]} 22. b3 {[%clk
0:02:01.9]} 22... d5 {[%clk 0:02:29.1]} 23. exd5 {[%clk 0:02:00.8]} 23... cxd5
{[%clk 0:02:31]} 24. Qa4+ {[%clk 0:02:01.2]} 24... Qb5 {[%clk 0:02:31]} 25. Qxa7
{[%clk 0:01:58.5]} 25... Rb7 {[%clk 0:02:04]} 26. Qa8+ {[%clk 0:01:55.3]} 26...
Rb8 {[%clk 0:02:05.4]} 27. Qa7 {[%clk 0:01:56.3]} 27... Rb7 {[%clk 0:02:06.7]}
28. Bf1 {[%clk 0:01:49.1]} 28... Qb4 {[%clk 0:02:00.3]} 29. Qa8+ {[%clk
0:01:45]} 29... Rb8 {[%clk 0:01:48.2]} 30. Qc6+ {[%clk 0:01:44.8]} 30... Nd7
{[%clk 0:01:48.5]} 31. Bh3 {[%clk 0:01:42.5]} 31... Qd6 {[%clk 0:01:42.9]} 32.
Qa4 {[%clk 0:01:36.6]} 32... d4 {[%clk 0:01:39.2]} 33. Bd2 {[%clk 0:01:35.9]}
33... Qa3+ {[%clk 0:01:35.1]} 34. Qxa3 {[%clk 0:01:36.3]} 34... Bxa3+ {[%clk
0:01:37]} 35. Kb1 {[%clk 0:01:37.7]} 35... Nc5 {[%clk 0:01:36.9]} 36. Re1 {[%clk
0:01:34.5]} 36... f6 {[%clk 0:01:38.2]} 37. Bg2 {[%clk 0:01:27.4]} 37... Kd7
{[%clk 0:01:33.7]} 38. c3 {[%clk 0:01:17.8]} 38... Nd3 {[%clk 0:01:16.7]} 39.
Rf1 {[%clk 0:01:15.2]} 39... Bc5 {[%clk 0:01:12.4]} 40. cxd4 {[%clk 0:01:11.2]}
40... Bxd4 {[%clk 0:01:14.3]} 41. Be3 {[%clk 0:01:09.2]} 41... Bxe3 {[%clk
0:01:15.5]} 42. fxe3 {[%clk 0:01:09.3]} 42... Ke6 {[%clk 0:01:14.4]} 43. Rd1
{[%clk 0:01:04.1]} 43... Nf2 {[%clk 0:01:14.8]} 44. Rd2 {[%clk 0:01:03.9]} 44...
Ng4 {[%clk 0:01:16.2]} 45. Bh3 {[%clk 0:01:04.2]} 45... Kf5 {[%clk 0:01:16.7]}
46. Kb2 {[%clk 0:00:57.3]} 46... Kg5 {[%clk 0:01:09.2]} 47. e4 {[%clk 0:00:49]}
47... Ne3 {[%clk 0:01:05.3]} 48. Rd3 {[%clk 0:00:48.2]} 48... Nc4+ {[%clk
0:01:02.7]} 49. Kc3 {[%clk 0:00:47.5]} 49... Na3 {[%clk 0:01:03]} 50. Rd7 {[%clk
0:00:43.6]} 50... g6 {[%clk 0:01:04]} 51. Bf1 {[%clk 0:00:43.4]} 51... Rc8+
{[%clk 0:00:55.8]} 52. Kb2 {[%clk 0:00:41.8]} 52... Nc2 {[%clk 0:00:57.4]} 53.
a4 {[%clk 0:00:38.7]} 53... Nd4 {[%clk 0:00:57]} 54. Bc4 {[%clk 0:00:39.1]}
54... Ra8 {[%clk 0:00:52.9]} 55. Kc3 {[%clk 0:00:35.4]} 55... Kg4 {[%clk
0:00:48.5]} 56. Rd6 {[%clk 0:00:36.3]} 56... Rf8 {[%clk 0:00:47.4]} 57. a5
{[%clk 0:00:34.5]} 57... Kxg3 {[%clk 0:00:48.7]} 58. a6 {[%clk 0:00:35.8]} 58...
Kf4 {[%clk 0:00:50.3]} 59. a7 {[%clk 0:00:29.6]} 59... Ra8 {[%clk 0:00:51.2]}
60. Rxf6+ {[%clk 0:00:29.3]} 60... Kxe4 {[%clk 0:00:52.8]} 61. Ra6 {[%clk
0:00:26.7]} 61... g5 {[%clk 0:00:53.5]} 62. Kb4 {[%clk 0:00:22.8]} 62... g4
{[%clk 0:00:54.1]} 63. Kc5 {[%clk 0:00:24.1]} 63... g3 {[%clk 0:00:55.5]} 64.
Bd5+ {[%clk 0:00:25.4]} 64... Kf4 {[%clk 0:00:52.6]} 65. Bxa8 {[%clk 0:00:26.5]}
65... Nxb3+ {[%clk 0:00:53.6]} 66. Kb4 {[%clk 0:00:26.9]} 1-0

[Event "*** Titled Tuesday Blitz"]
[Site "Chess.com"]
[Date "2019.04.02"]
[Round "7"]
[White "Caterpiller35"]
[Black "XiaoKangZhong"]
[Result "1-0"]
[WhiteElo "2232"]
[BlackElo "2112"]
[TimeControl "180+2"]
[EndTime "15:35:01 PDT"]
[Termination "Caterpiller35 won by resignation"]

1. d4 {[%clk 0:03:01.9]} 1... Nf6 {[%clk 0:03:00]} 2. Bf4 {[%clk 0:03:02.7]}
2... g6 {[%clk 0:03:00.6]} 3. Nc3 {[%clk 0:03:02.6]} 3... d5 {[%clk 0:03:01]} 4.
e3 {[%clk 0:03:03.6]} 4... Bg7 {[%clk 0:03:02.1]} 5. h4 {[%clk 0:03:03.4]} 5...
h5 {[%clk 0:03:02.3]} 6. Nb5 {[%clk 0:03:03.7]} 6... Na6 {[%clk 0:03:02]} 7. Nf3
{[%clk 0:03:05.1]} 7... c6 {[%clk 0:03:03]} 8. Nc3 {[%clk 0:03:05.7]} 8... Nc7
{[%clk 0:03:01.8]} 9. Ne5 {[%clk 0:03:04.6]} 9... Ne6 {[%clk 0:02:55.7]} 10. Be2
{[%clk 0:02:59.9]} 10... Nxf4 {[%clk 0:02:56.2]} 11. exf4 {[%clk 0:03:01.8]}
11... Bf5 {[%clk 0:02:53.9]} 12. Qd2 {[%clk 0:02:55.8]} 12... Bh6 {[%clk
0:02:44.4]} 13. O-O-O {[%clk 0:02:52.4]} 13... Qc7 {[%clk 0:02:29.4]} 14. f3
{[%clk 0:02:51.5]} 14... Be6 {[%clk 0:02:19.4]} 15. g4 {[%clk 0:02:52]} 15...
Nd7 {[%clk 0:02:20.2]} 16. g5 {[%clk 0:02:43.3]} 16... Bg7 {[%clk 0:02:19.5]}
17. Bd3 {[%clk 0:02:40.6]} 17... O-O-O {[%clk 0:02:17]} 18. Kb1 {[%clk 0:02:34]}
18... Kb8 {[%clk 0:02:07.5]} 19. Ne2 {[%clk 0:02:34.2]} 19... c5 {[%clk
0:02:05.5]} 20. c3 {[%clk 0:02:29.5]} 20... c4 {[%clk 0:01:59.7]} 21. Bc2 {[%clk
0:02:28.9]} 21... Ka8 {[%clk 0:01:51.8]} 22. Ng3 {[%clk 0:02:28.8]} 22... Nxe5
{[%clk 0:01:41]} 23. fxe5 {[%clk 0:02:23.6]} 23... Qd7 {[%clk 0:01:40]} 24. f4
{[%clk 0:02:22.9]} 24... Bg4 {[%clk 0:01:36.8]} 25. Rdf1 {[%clk 0:02:23.6]}
25... e6 {[%clk 0:01:36.9]} 26. Bd1 {[%clk 0:02:15.2]} 26... Bxd1 {[%clk
0:01:36.7]} 27. Qxd1 {[%clk 0:02:17.1]} 27... Rb8 {[%clk 0:01:37.3]} 28. Kc2
{[%clk 0:02:15.8]} 28... b5 {[%clk 0:01:38.4]} 29. a3 {[%clk 0:02:16.2]} 29...
Qc6 {[%clk 0:01:33.9]} 30. Kd2 {[%clk 0:02:16.7]} 30... Kb7 {[%clk 0:01:34]} 31.
Ke3 {[%clk 0:02:17.3]} 31... Kc7 {[%clk 0:01:35.1]} 32. Ne2 {[%clk 0:02:15.9]}
32... Kd7 {[%clk 0:01:35.4]} 33. f5 {[%clk 0:02:17.3]} 33... exf5 {[%clk
0:01:17.4]} 34. Nf4 {[%clk 0:02:19.2]} 34... a5 {[%clk 0:01:17.8]} 35. Qf3
{[%clk 0:02:17.2]} 35... Rhe8 {[%clk 0:01:08.5]} 36. Nxd5 {[%clk 0:01:56.3]}
36... Bxe5 {[%clk 0:01:05.2]} 37. dxe5 {[%clk 0:01:52.8]} 37... Rxe5+ {[%clk
0:01:05.8]} 38. Kd4 {[%clk 0:01:54]} 38... Re4+ {[%clk 0:00:59.8]} 39. Qxe4
{[%clk 0:01:54.3]} 39... fxe4 {[%clk 0:01:00.5]} 40. Rxf7+ {[%clk 0:01:54.9]}
40... Ke8 {[%clk 0:01:01.2]} 41. Rhf1 {[%clk 0:01:50.7]} 41... Qd6 {[%clk
0:00:51.2]} 42. R1f6 {[%clk 0:01:41.2]} 42... e3 {[%clk 0:00:15.2]} 43. Rxd6
{[%clk 0:01:26]} 43... Kxf7 {[%clk 0:00:15.7]} 44. Rd7+ {[%clk 0:01:24]} 44...
Ke6 {[%clk 0:00:16.9]} 45. Re7+ {[%clk 0:01:23.4]} 45... Kf5 {[%clk 0:00:18.1]}
46. Nxe3+ {[%clk 0:01:24.5]} 46... Kf4 {[%clk 0:00:19.1]} 47. Nd5+ {[%clk
0:01:22]} 47... Kg4 {[%clk 0:00:19.3]} 48. Re4+ {[%clk 0:01:22.8]} 48... Kg3
{[%clk 0:00:19.9]} 49. Ne7 {[%clk 0:01:18.5]} 49... Rd8+ {[%clk 0:00:18.7]} 50.
Kc5 {[%clk 0:01:19.4]} 50... Rd2 {[%clk 0:00:19.5]} 51. Kxb5 {[%clk 0:01:20.4]}
51... Rxb2+ {[%clk 0:00:20]} 52. Kxa5 {[%clk 0:01:19.6]} 52... Rb3 {[%clk
0:00:20.6]} 53. Rxc4 {[%clk 0:01:20.4]} 53... Rxa3+ {[%clk 0:00:21.5]} 54. Kb4
{[%clk 0:01:21.8]} 54... Ra6 {[%clk 0:00:21.9]} 55. Kb5 {[%clk 0:01:13.5]} 55...
Re6 {[%clk 0:00:21.8]} 56. Nd5 {[%clk 0:01:11.4]} 56... Re5 {[%clk 0:00:21.7]}
57. Rd4 {[%clk 0:01:12.1]} 57... Re1 {[%clk 0:00:13.7]} 58. c4 {[%clk
0:01:09.4]} 58... Rb1+ {[%clk 0:00:14.6]} 59. Kc6 {[%clk 0:01:10.6]} 59... Rc1
{[%clk 0:00:14.8]} 60. c5 {[%clk 0:01:11.6]} 60... Re1 {[%clk 0:00:16]} 61. Kd6
{[%clk 0:01:12.7]} 61... Kh3 {[%clk 0:00:17.3]} 62. c6 {[%clk 0:01:13.7]} 62...
Rg1 {[%clk 0:00:14.5]} 63. c7 {[%clk 0:01:14.1]} 63... Rc1 {[%clk 0:00:16.2]}
64. Kd7 {[%clk 0:01:14.6]} 64... Rc2 {[%clk 0:00:08.5]} 65. c8=Q {[%clk
0:01:10.1]} 65... Rd2 {[%clk 0:00:09.9]} 66. Rxd2 {[%clk 0:01:08.4]} 1-0